[Event "Swiss Championship U10 2022"]
[Site "Biel"]
[Date "2022.07.20"]
[Round "5.7"]
[White "Parmelin, Axel"]
[Black "Wilhelm, Marco"]
[Result "0-1"]
[ECO "C02"]
[WhiteElo "1298"]
[BlackElo "1332"]
[Annotator "NA RC COMBH"]
[PlyCount "170"]
[EventDate "2022.07.18"]
[EventType "swiss"]
[EventCountry "SUI"]
[SourceTitle "playchess.com"]
[Source "ChessBase"]
[SourceQuality "1"]
[TimeControl "5400+30"]

1. e4 {[%emt 0:00:04]} e6 {[%emt 0:00:09]} 2. d4 {[%emt 0:00:07]} d5 {[%emt 0:00:06]} 3. e5 {[%emt 0:00:08]} c5 {[%emt 0:00:12]} 4. c3 {[%emt 0:00:11]} Nc6 {[%emt 0:00:19]} 5. Nf3 {[%emt 0:00:13]} Qb6 {[%emt 0:00:47]} 6. a3 {[%emt 0:01:17]} Nge7 {[%emt 0:00:59]} 7. b4 {[%emt 0:02:08]} cxd4 {[%emt 0:02:01]} 8. Nxd4 {[%emt 0:00:00]} Nxe5 {[%emt 0:01:43]} 9. Bb5+ {[%emt 0:00:24]} Bd7 {[%emt 0:00:19]} 10. Bxd7+ {[%emt 0:00:00]} Nxd7 {[%emt 0:00:29]} 11. Be3 {[%emt 0:00:00]} Qc7 {[%emt 0:00:38]} 12. Nd2 {[%emt 0:01:02]} Nc6 {[%emt 0:02:31]} 13. N2f3 {[%emt 0:01:11]} Nf6 {[%emt 0:00:00]} 14. O-O {[%emt 0:00:13]} Bd6 {[%emt 0:00:00]} 15. Nb5 {[%emt 0:00:49]} Qd7 {[%emt 0:01:51]} 16. Nxd6+ {[%emt 0:00:29]} Qxd6 {[%emt 0:00:20]} 17. Qd2 {[%emt 0:02:47]} Ne5 {[%emt 0:00:36]} 18. Bf4 {[%emt 0:01:23]} Nxf3+ {[%emt 0:01:18]} 19. gxf3 {[%emt 0:01:08]} Qe7 {[%emt 0:00:54]} 20. Kh1 {[%emt 0:07:17]} h6 {[%emt 0:06:50]} 21. Rg1 {[%emt 0:00:16]} Qf8 {[%emt 0:00:26]} 22. Be3 {[%emt 0:02:51]} b6 {[%emt 0:00:57]} 23. Qd3 {[%emt 0:04:45]} Qe7 {[%emt 0:02:16]} 24. Rxg7 {[%emt 0:00:00]} Rg8 {[%emt 0:01:26]} 25. Rxg8+ {[%emt 0:00:20]} Nxg8 {[%emt 0:00:17]} 26. Qh7 {[%emt 0:00:22]} Qf8 {[%emt 0:00:59]} 27. Rg1 {[%emt 0:01:08]} Nf6 {[%emt 0:01:39]} 28. Qg7 {[%emt 0:00:46]} Qxg7 {[%emt 0:00:34]} 29. Rxg7 {[%emt 0:00:35]} Rc8 {[%emt 0:01:19]} 30. Bd4 {[%emt 0:01:37]} Ke7 {[%emt 0:01:00]} 31. Rg3 {[%emt 0:01:39]} Rb8 {[%emt 0:02:02]} 32. f4 {[%emt 0:00:52]} a5 {[%emt 0:01:28]} 33. b5 {[%emt 0:02:26]} Ne4 {[%emt 0:04:10]} 34. Rh3 {[%emt 0:15:59]} Rc8 {[%emt 0:05:04]} 35. Rxh6 {[%emt 0:00:47]} Nxc3 {[%emt 0:01:02]} 36. Bxb6 {[%emt 0:01:32]} Nxb5 {[%emt 0:00:19]} 37. Bxa5 {[%emt 0:01:14]} Ra8 {[%emt 0:00:40]} 38. Bb4+ {[%emt 0:01:03]} Kd7 {[%emt 0:00:47]} 39. Rh7 {[%emt 0:00:13]} Nd6 {[%emt 0:00:36]} 40. h4 {[%emt 0:00:49]} Rg8 {[%emt 0:00:27]} 41. a4 {[%emt 0:02:07]} Rb8 {[%emt 0:02:32]} 42. Bc3 {[%emt 0:04:24]} Rb3 {[%emt 0:02:46]} 43. Be5 {[%emt 0:01:00]} Ra3 {[%emt 0:00:20]} 44. Rh8 {[%emt 0:01:38]} Rxa4 {[%emt 0:00:41]} 45. h5 {[%emt 0:05:02]} d4 {[%emt 0:08:23]} 46. Kg2 {[%emt 0:02:45]} d3 {[%emt 0:03:58]} 47. Bc3 {[%emt 0:02:17]} Ne4 {[%emt 0:04:19]} 48. Kf3 {[%emt 0:06:05]} Nxc3 {[%emt 0:01:09]} 49. Ke3 {[%emt 0:00:28]} Nd5+ {[%emt 0:03:39]} 50. Kd2 {[%emt 0:00:49]} Ra2+ {[%emt 0:01:12]} 51. Kxd3 {[%emt 0:00:13]} Nxf4+ {[%emt 0:10:12]} 52. Ke3 {[%emt 0:00:00]} Nxh5 {[%emt 0:03:32]} 53. Rxh5 {[%emt 0:00:23]} Ra3+ {[%emt 0:00:57]} 54. Ke4 {[%emt 0:00:20]} Ra4+ {[%emt 0:00:00]} 55. Kf3 {[%emt 0:00:22]} Rd4 {[%emt 0:01:28]} 56. Kg3 {[%emt 0:00:00]} Rd5 {[%emt 0:01:19]} 57. Rh7 {[%emt 0:03:31]} Ke7 {[%emt 0:00:24]} 58. Kg4 {[%emt 0:00:20]} Rd4+ {[%emt 0:00:49]} 59. Kg5 {[%emt 0:00:24]} Re4 {[%emt 0:00:00]} 60. f4 {[%emt 0:01:50]} Kf8 {[%emt 0:00:37]} 61. f5 {[%emt 0:00:24]} Re5 {[%emt 0:01:36]} 62. Kf4 {[%emt 0:00:00]} Rxf5+ {[%emt 0:00:00]} 63. Kg4 {[%emt 0:00:00]} Kg8 {[%emt 0:00:59]} 64. Rh3 {[%emt 0:00:10]} Kg7 {[%emt 0:00:36]} 65. Rg3 {[%emt 0:00:33]} Kg6 {[%emt 0:00:17]} 66. Kh4+ {[%emt 0:00:20]} Kf6 {[%emt 0:00:48]} 67. Re3 {[%emt 0:00:15]} e5 {[%emt 0:01:13]} 68. Kg4 {[%emt 0:00:20]} Ke6 {[%emt 0:00:15]} 69. Rc3 {[%emt 0:01:16]} Rf6 {[%emt 0:00:00]} 70. Rc6+ {[%emt 0:00:00]} Ke7 {[%emt 0:00:00]} 71. Rc7+ {[%emt 0:00:22]} Kf8 {[%emt 0:00:21]} 72. Rc5 {[%emt 0:00:00]} Re6 {[%emt 0:00:00]} 73. Kf5 {[%emt 0:00:39]} e4 {[%emt 0:00:17]} 74. Rc2 {[%emt 0:00:00]} e3 {[%emt 0:00:00]} 75. Re2 {[%emt 0:00:08]} Kg7 {[%emt 0:00:00]} 76. Kf4 {[%emt 0:00:00]} Kg6 {[%emt 0:00:00]} 77. Rxe3 {[%emt 0:00:00]} Rxe3 {[%emt 0:00:00]} 78. Kxe3 {[%emt 0:00:10]} Kg5 {[%emt 0:00:00]} 79. Kf3 {[%emt 0:00:00]} Kf5 {[%emt 0:00:22]} 80. Kg3 {[%emt 0:00:08]} Ke4 {[%emt 0:00:00]} 81. Kf2 {[%emt 0:00:21]} Kf4 {[%emt 0:00:00]} 82. Kg2 {[%emt 0:00:27]} Ke3 {[%emt 0:00:24]} 83. Kg3 {[%emt 0:00:00]} f5 {[%emt 0:00:16]} 84. Kg2 {[%emt 0:00:14]} f4 {[%emt 0:00:50]} 85. Kf1 {[%emt 0:00:00]} Kf3 {[%emt 0:00:00]} 0-1

[Event "Swiss Championship U10 2022"]
[Site "Biel"]
[Date "2022.07.20"]
[Round "5.8"]
[White "Gregor, Elena"]
[Black "Sunilkumar, Prathyush"]
[Result "1-0"]
[ECO "C42"]
[WhiteElo "1258"]
[BlackElo "1336"]
[Annotator "NA RC COMBH"]
[PlyCount "63"]
[EventDate "2022.07.18"]
[EventType "swiss"]
[EventCountry "SUI"]
[SourceTitle "playchess.com"]
[Source "ChessBase"]
[SourceQuality "1"]
[TimeControl "5400+30"]

1. e4 {[%emt 0:00:04]} e5 {[%emt 0:00:10]} 2. Nf3 {[%emt 0:00:07]} Nf6 {[%emt 0:00:54]} 3. Nxe5 {[%emt 0:00:40]} d6 {[%emt 0:00:17]} 4. Nf3 {[%emt 0:00:12]} Nxe4 {[%emt 0:00:13]} 5. Qe2 {[%emt 0:03:43]} Qe7 {[%emt 0:01:36]} 6. d4 {[%emt 0:02:36]} Bf5 {[%emt 0:01:56]} 7. Nc3 {[%emt 0:02:15]} Nxc3 {[%emt 0:01:58]} 8. bxc3 {[%emt 0:01:02]} Bxc2 {[%emt 0:03:08]} 9. Be3 {[%emt 0:00:23]} Bf5 {[%emt 0:00:52]} 10. Qb5+ {[%emt 0:00:58]} Bd7 {[%emt 0:00:29]} 11. Qxb7 {[%emt 0:00:26]} Bc6 {[%emt 0:00:59]} 12. Bb5 {[%emt 0:00:25]} Qd7 {[%emt 0:00:24]} 13. Bxc6 {[%emt 0:00:38]} Qxc6 {[%emt 0:00:17]} 14. Qc8+ {[%emt 0:01:04]} Ke7 {[%emt 0:00:09]} 15. Qg4 {[%emt 0:02:21]} Nd7 {[%emt 0:01:26]} 16. O-O {[%emt 0:01:02]} Nf6 {[%emt 0:02:25]} 17. Qg3 {[%emt 0:02:08]} g6 {[%emt 0:00:00]} 18. Rfe1 {[%emt 0:01:46]} Kd7 {[%emt 0:00:00]} 19. Qh3+ {[%emt 0:02:09]} Kd8 {[%emt 0:00:02]} 20. Bg5 {[%emt 0:01:42]} d5 {[%emt 0:00:22]} 21. Ne5 {[%emt 0:19:07]} Qe6 {[%emt 0:22:23]} 22. Bxf6+ {[%emt 0:00:00]} Kc8 {[%emt 0:06:06]} 23. Qxe6+ {[%emt 0:00:00]} fxe6 {[%emt 0:04:43]} 24. Bxh8 {[%emt 0:00:00]} Kb7 {[%emt 0:02:16]} 25. Rab1+ {[%emt 0:00:00]} Ka6 {[%emt 0:01:36]} 26. Nd7 {[%emt 0:00:00]} Bd6 {[%emt 0:00:31]} 27. Be5 {[%emt 0:00:00]} Re8 {[%emt 0:02:53]} 28. Nc5+ {[%emt 0:00:00]} Bxc5 {[%emt 0:01:44]} 29. dxc5 {[%emt 0:00:09]} c6 {[%emt 0:00:46]} 30. c4 {[%emt 0:00:00]} h6 {[%emt 0:03:39]} 31. Re3 {[%emt 0:00:00]} h5 {[%emt 0:04:24]} 32. Ra3# {[%emt 0:00:00]} 1-0

[Event "Swiss Championship U10 2022"]
[Site "Biel"]
[Date "2022.07.20"]
[Round "6.1"]
[White "Domschke, Mischa"]
[Black "Chockalingam, Vishak"]
[Result "1/2-1/2"]
[ECO "A13"]
[WhiteElo "1565"]
[BlackElo "1285"]
[Annotator "NA RC COMBH"]
[PlyCount "99"]
[EventDate "2022.07.18"]
[EventType "swiss"]
[EventCountry "SUI"]
[SourceTitle "playchess.com"]
[Source "ChessBase"]
[SourceQuality "1"]
[TimeControl "5400+30"]

1. c4 {[%emt 0:00:16]} e6 {[%emt 0:00:20]} 2. Nc3 {[%emt 0:00:05]} d5 {[%emt 0:00:17]} 3. cxd5 {[%emt 0:00:11]} exd5 {[%emt 0:00:16]} 4. d3 {[%emt 0:01:33]} Nf6 {[%emt 0:01:30]} 5. g3 {[%emt 0:01:24]} Bf5 {[%emt 0:00:24]} 6. Bg2 {[%emt 0:00:39]} c6 {[%emt 0:01:27]} 7. Bf4 {[%emt 0:01:59]} Nbd7 {[%emt 0:02:04]} 8. Nf3 {[%emt 0:05:59]} Bc5 {[%emt 0:00:35]} 9. d4 {[%emt 0:00:24]} Bb6 {[%emt 0:00:30]} 10. O-O {[%emt 0:00:00]} O-O {[%emt 0:00:53]} 11. Na4 {[%emt 0:00:00]} Bc7 {[%emt 0:00:51]} 12. Bxc7 {[%emt 0:00:00]} Qxc7 {[%emt 0:00:38]} 13. Nc5 {[%emt 0:01:34]} Nxc5 {[%emt 0:06:45]} 14. dxc5 {[%emt 0:04:01]} Rfe8 {[%emt 0:04:12]} 15. Re1 {[%emt 0:08:48]} h6 {[%emt 0:03:20]} 16. Qd4 {[%emt 0:05:01]} Re4 {[%emt 0:04:53]} 17. Qd2 {[%emt 0:01:38]} Bh7 {[%emt 0:01:18]} 18. Nd4 {[%emt 0:00:00]} Re7 {[%emt 0:02:27]} 19. Bh3 {[%emt 0:02:28]} Ne4 {[%emt 0:00:31]} 20. Qb4 {[%emt 0:00:40]} a5 {[%emt 0:09:49]} 21. Qa3 {[%emt 0:01:33]} Qe5 {[%emt 0:03:00]} 22. Nf3 {[%emt 0:00:11]} Qf6 {[%emt 0:01:52]} 23. Rf1 {[%emt 0:02:02]} Ng5 {[%emt 0:00:28]} 24. Nxg5 {[%emt 0:00:00]} hxg5 {[%emt 0:00:23]} 25. e3 {[%emt 0:00:00]} Bf5 {[%emt 0:01:48]} 26. Bg2 {[%emt 0:02:58]} Qh6 {[%emt 0:01:06]} 27. Rae1 {[%emt 0:05:39]} Rae8 {[%emt 0:01:54]} 28. Qxa5 {[%emt 0:00:43]} Bd3 {[%emt 0:00:20]} 29. Qc3 {[%emt 0:01:14]} Bxf1 {[%emt 0:02:20]} 30. Rxf1 {[%emt 0:01:34]} Qf6 {[%emt 0:04:40]} 31. Qb4 {[%emt 0:01:04]} g6 {[%emt 0:01:18]} 32. b3 {[%emt 0:01:18]} Kg7 {[%emt 0:03:41]} 33. a4 {[%emt 0:00:00]} Qf5 {[%emt 0:01:49]} 34. Qd4+ {[%emt 0:01:56]} Qe5 {[%emt 0:01:59]} 35. Qg4 {[%emt 0:00:42]} Qf5 {[%emt 0:00:00]} 36. Qd4+ {[%emt 0:00:00]} f6 {[%emt 0:00:29]} 37. b4 {[%emt 0:11:57]} Qd7 {[%emt 0:00:37]} 38. Rb1 {[%emt 0:07:05]} Ra8 {[%emt 0:01:05]} 39. b5 {[%emt 0:00:00]} Ree8 {[%emt 0:03:49]} 40. b6 {[%emt 0:01:33]} Ra5 {[%emt 0:00:42]} 41. e4 {[%emt 0:04:50]} Qe7 {[%emt 0:21:54]} 42. exd5 {[%emt 0:00:00]} Qxc5 {[%emt 0:01:33]} 43. Qxc5 {[%emt 0:00:00]} Rxc5 {[%emt 0:00:15]} 44. dxc6 {[%emt 0:00:16]} bxc6 {[%emt 0:00:00]} 45. b7 {[%emt 0:00:00]} Rb8 {[%emt 0:01:26]} 46. a5 {[%emt 0:00:00]} Rxa5 {[%emt 0:00:00]} 47. Bxc6 {[%emt 0:00:38]} Rc5 {[%emt 0:00:31]} 48. Bf3 {[%emt 0:00:42]} Re5 {[%emt 0:00:22]} 49. h3 {[%emt 0:00:16]} Re7 {[%emt 0:00:00]} 50. Rc1 {[%emt 0:02:17]} 1/2-1/2

[Event "Swiss Championship U10 2022"]
[Site "Biel"]
[Date "2022.07.20"]
[Round "6.2"]
[White "Saminskij, Jan"]
[Black "Kumar, Shreyank"]
[Result "1-0"]
[ECO "D11"]
[WhiteElo "1487"]
[BlackElo "1404"]
[Annotator "NA COMBH"]
[PlyCount "89"]
[EventDate "2022.07.18"]
[EventType "swiss"]
[EventCountry "SUI"]
[SourceTitle "playchess.com"]
[Source "ChessBase"]
[SourceQuality "1"]
[TimeControl "5400+30"]

1. Nf3 {[%emt 0:00:24]} d5 {[%emt 0:00:31]} 2. d4 {[%emt 0:00:19]} Nf6 {[%emt 0:02:39]} 3. g3 {[%emt 0:01:03]} Bf5 {[%emt 0:00:15]} 4. Bg2 {[%emt 0:00:20]} e6 {[%emt 0:00:31]} 5. O-O {[%emt 0:00:56]} Be7 {[%emt 0:01:09]} 6. c4 {[%emt 0:02:14]} c6 {[%emt 0:05:52]} 7. cxd5 {[%emt 0:00:17]} cxd5 {[%emt 0:12:26]} 8. Nc3 {[%emt 0:02:28]} Nbd7 {[%emt 0:05:01]} 9. Bf4 {[%emt 0:03:00]} a6 {[%emt 0:02:35]} 10. h3 {[%emt 0:00:35]} h6 {[%emt 0:02:04]} 11. a4 {[%emt 0:02:19]} b6 {[%emt 0:00:27]} 12. Ne5 {[%emt 0:03:55]} Nxe5 {[%emt 0:01:10]} 13. Bxe5 {[%emt 0:00:57]} Bd6 {[%emt 0:03:53]} 14. f4 {[%emt 0:12:07]} Rg8 {[%emt 0:03:24]} 15. g4 {[%emt 0:02:17]} Bg6 {[%emt 0:02:45]} 16. f5 {[%emt 0:01:12]} exf5 {[%emt 0:01:36]} 17. gxf5 {[%emt 0:01:06]} Bh7 {[%emt 0:04:13]} 18. Bxf6 {[%emt 0:00:24]} gxf6 {[%emt 0:04:20]} 19. Nxd5 {[%emt 0:04:26]} Kd7 {[%emt 0:03:35]} 20. Qb3 {[%emt 0:09:04]} Rb8 {[%emt 0:03:14]} 21. Kh1 {[%emt 0:09:52]} b5 {[%emt 0:02:39]} 22. Rac1 {[%emt 0:10:19]} Rg5 {[%emt 0:00:18]} 23. Qc3 {[%emt 0:03:36]} Ke8 {[%emt 0:01:23]} 24. Qe3+ {[%emt 0:00:23]} Kf8 {[%emt 0:01:10]} 25. axb5 {[%emt 0:00:53]} Rxb5 {[%emt 0:11:58]} 26. Nc3 {[%emt 0:01:21]} Rbxf5 {[%emt 0:01:16]} 27. Be4 {[%emt 0:00:20]} Rxf1+ {[%emt 0:00:19]} 28. Rxf1 {[%emt 0:03:34]} Bxe4+ {[%emt 0:00:07]} 29. Nxe4 {[%emt 0:00:11]} Rg6 {[%emt 0:01:34]} 30. Qf3 {[%emt 0:00:23]} Qd7 {[%emt 0:04:00]} 31. h4 {[%emt 0:01:47]} h5 {[%emt 0:02:48]} 32. Rf2 {[%emt 0:07:52]} Be7 {[%emt 0:02:19]} 33. e3 {[%emt 0:01:02]} a5 {[%emt 0:01:49]} 34. Kh2 {[%emt 0:01:01]} Qc7+ {[%emt 0:00:47]} 35. Qf4 {[%emt 0:03:56]} Qb7 36. Ng3 {[%emt 0:02:22]} Qd5 {[%emt 0:01:56]} 37. Qb8+ {[%emt 0:00:22]} Kg7 {[%emt 0:00:04]} 38. Nf5+ {[%emt 0:00:46]} Kh7 {[%emt 0:00:51]} 39. Nxe7 {[%emt 0:01:47]} Qe4 {[%emt 0:00:27]} 40. Nxg6 {[%emt 0:00:27]} fxg6 {[%emt 0:00:07]} 41. Qf4 {[%emt 0:01:26]} Qb7 {[%emt 0:00:39]} 42. Qxf6 {[%emt 0:00:19]} Qb8+ {[%emt 0:01:10]} 43. Qf4 {[%emt 0:00:35]} Qa8 {[%emt 0:00:08]} 44. Qf7+ {[%emt 0:00:16]} Kh6 {[%emt 0:00:12]} 45. Qf8+ {[%emt 0:00:22]} 1-0

[Event "Swiss Championship U10 2022"]
[Site "Biel"]
[Date "2022.07.20"]
[Round "6.3"]
[White "Pahud, Kylian"]
[Black "Bhingare, Joshua"]
[Result "0-1"]
[ECO "C45"]
[WhiteElo "1373"]
[BlackElo "1342"]
[Annotator "NA RC COMBH"]
[PlyCount "110"]
[EventDate "2022.07.18"]
[EventType "swiss"]
[EventCountry "SUI"]
[SourceTitle "playchess.com"]
[Source "ChessBase"]
[SourceQuality "1"]
[TimeControl "5400+30"]

1. e4 {[%emt 0:00:50]} e5 {[%emt 0:00:31]} 2. Nf3 {[%emt 0:01:34]} Nc6 {[%emt 0:00:33]} 3. d4 {[%emt 0:01:15]} exd4 {[%emt 0:00:59]} 4. Nxd4 {[%emt 0:02:49]} Be7 {[%emt 0:02:31]} 5. Nc3 {[%emt 0:03:20]} Nf6 {[%emt 0:01:31]} 6. Be2 {[%emt 0:04:06]} O-O {[%emt 0:00:39]} 7. O-O {[%emt 0:01:10]} Nxd4 {[%emt 0:02:12]} 8. Qxd4 {[%emt 0:00:31]} d6 {[%emt 0:00:52]} 9. Bf4 {[%emt 0:02:17]} Be6 {[%emt 0:02:09]} 10. Rad1 {[%emt 0:01:07]} Nd7 {[%emt 0:01:17]} 11. Qe3 {[%emt 0:00:43]} Bf6 {[%emt 0:02:06]} 12. Nd5 {[%emt 0:11:47]} Re8 {[%emt 0:08:47]} 13. Nxf6+ {[%emt 0:03:12]} Nxf6 {[%emt 0:04:45]} 14. Qf3 {[%emt 0:02:53]} Bg4 {[%emt 0:00:00]} 15. Qd3 {[%emt 0:01:12]} Bxe2 {[%emt 0:00:00]} 16. Qxe2 {[%emt 0:01:15]} Nxe4 {[%emt 0:00:57]} 17. Qf3 {[%emt 0:01:28]} Qf6 {[%emt 0:03:13]} 18. Rfe1 {[%emt 0:01:33]} Nc5 {[%emt 0:03:14]} 19. b4 {[%emt 0:05:32]} Ne6 {[%emt 0:01:15]} 20. Bg3 {[%emt 0:02:07]} Qxf3 {[%emt 0:03:20]} 21. gxf3 {[%emt 0:01:10]} Ng5 {[%emt 0:02:42]} 22. Kg2 {[%emt 0:01:30]} f6 {[%emt 0:03:03]} 23. h4 {[%emt 0:02:28]} Nf7 {[%emt 0:00:21]} 24. b5 {[%emt 0:03:22]} Ne5 {[%emt 0:00:30]} 25. Rd2 {[%emt 0:00:51]} a6 {[%emt 0:03:28]} 26. Rde2 {[%emt 0:00:34]} Kf7 {[%emt 0:01:37]} 27. a4 {[%emt 0:00:44]} axb5 {[%emt 0:00:35]} 28. axb5 {[%emt 0:00:58]} Nc4 {[%emt 0:00:38]} 29. Rxe8 {[%emt 0:00:51]} Rxe8 {[%emt 0:00:07]} 30. Rxe8 {[%emt 0:00:01]} Kxe8 {[%emt 0:00:27]} 31. c3 {[%emt 0:00:13]} Na3 {[%emt 0:00:10]} 32. b6 {[%emt 0:00:08]} Kd7 {[%emt 0:00:25]} 33. bxc7 {[%emt 0:00:10]} Kxc7 {[%emt 0:00:10]} 34. Kf1 {[%emt 0:00:25]} Nb1 {[%emt 0:00:15]} 35. c4 {[%emt 0:00:35]} Nd2+ {[%emt 0:00:06]} 36. Ke2 {[%emt 0:00:10]} Nxc4 {[%emt 0:01:06]} 37. Kd1 {[%emt 0:01:01]} b5 {[%emt 0:00:00]} 38. Kc2 {[%emt 0:00:20]} Kc6 {[%emt 0:00:03]} 39. Kc3 {[%emt 0:00:32]} Kc5 {[%emt 0:00:11]} 40. f4 {[%emt 0:01:48]} b4+ {[%emt 0:00:14]} 41. Kc2 {[%emt 0:00:06]} Na5 {[%emt 0:01:22]} 42. h5 {[%emt 0:00:18]} Kc4 {[%emt 0:00:10]} 43. f5 {[%emt 0:00:18]} d5 {[%emt 0:00:19]} 44. h6 {[%emt 0:00:16]} gxh6 {[%emt 0:00:12]} 45. Bh4 {[%emt 0:00:04]} b3+ {[%emt 0:00:34]} 46. Kb1 {[%emt 0:00:54]} Kc3 {[%emt 0:00:50]} 47. Bxf6+ {[%emt 0:00:00]} d4 {[%emt 0:00:11]} 48. Bxd4+ {[%emt 0:01:21]} Kxd4 {[%emt 0:00:58]} 49. f6 {[%emt 0:00:41]} Kc3 {[%emt 0:00:33]} 50. f7 {[%emt 0:00:00]} Nc4 {[%emt 0:00:10]} 51. f8=Q {[%emt 0:00:00]} Nd2+ {[%emt 0:00:07]} 52. Kc1 {[%emt 0:00:00]} b2+ {[%emt 0:00:08]} 53. Kd1 {[%emt 0:00:00]} b1=Q+ {[%emt 0:00:08]} 54. Ke2 {[%emt 0:00:20]} Qd3+ {[%emt 0:00:04]} 55. Ke1 {[%emt 0:00:08]} Qf1# {[%emt 0:00:07]} 0-1

[Event "Swiss Championship U10 2022"]
[Site "Biel"]
[Date "2022.07.20"]
[Round "6.4"]
[White "Jordan, Christina"]
[Black "Lerner, David B"]
[Result "1-0"]
[ECO "B28"]
[WhiteElo "1367"]
[BlackElo "2125"]
[Annotator "TA"]
[PlyCount "106"]
[EventDate "2022.07.18"]
[EventType "swiss"]
[EventCountry "SUI"]
[SourceTitle "playchess.com"]
[Source "ChessBase"]
[SourceQuality "1"]
[TimeControl "5400+30"]

{[%evp 10,106,23,34,71,38,53,35,86,83,85,81,91,90,103,69,77,9,99,95,94,74,76,66,97,83,94,31,42,35,43,24,65,33,32,0,21,0,22,-27,39,39,39,18,293,139,143,135,408,410,365,251,366,223,421,422,388,254,429,442,392,134,133,146,195,197,190,195,181,181,504,480,474,442,547,129,100,53,91,99,188,8,132,16,80,71,73,0,33,0,2,0,203,203,29945,12813,6541,5917,29981]} 1. e4 {[%emt 0:00:01]} c5 {[%emt 0:00:11]} 2. Nf3 {[%emt 0:00:08]} a6 {[%emt 0:00:08]} 3. c3 {[%emt 0:00:07]} e6 {[%emt 0:00:43]} 4. d4 {[%emt 0:00:35]} d5 {[%emt 0:00:38]} 5. e5 {[%emt 0:03:08]} Bd7 {[%emt 0:03:30]} 6. Bd3 {[%emt 0:00:00]} Bb5 {[%emt 0:01:06] B28: Sicilian: 2 Nf3 a6 (O'Kelly Variation).} 7. Bc2 {[%emt 0:00:00]} cxd4 {[%emt 0:03:31]} 8. cxd4 {[%emt 0:00:00] [#]} Qa5+ $146 {[%emt 0:02:08]} (8... a5 $14) ({Predecessor:} 8... a5 9. Nc3 Ba6 10. a3 Nc6 11. h4 Nge7 12. h5 h6 13. g4 b5 14. a4 bxa4 15. Bxa4 {1-0 (40) Wagner,D (2584)-Glek,I (2476) Chess.com INT 2022}) 9. Nc3 {[%emt 0:01:29]} Bb4 {[%emt 0:00:57]} 10. Bd2 {[%emt 0:00:05]} Ne7 {[%emt 0:01:27]} 11. a3 {[%emt 0:01:54][%cal Ba2a3,Ba3a4][%mdl 32]} (11. Nxb5 axb5 12. O-O Bxd2 13. Nxd2 (13. Qxd2 Qxd2 14. Nxd2 O-O $11) 13... Nbc6 $11) 11... Bxc3 {[%emt 0:01:19]} 12. bxc3 {[%emt 0:02:14][%cal Oc3c4] Hoping for c4!} Qc7 {[%emt 0:02:17]} 13. Qb1 {[%emt 0:09:16]} (13. Ng5 $16) 13... Nf5 {[%emt 0:03:07]} (13... Nd7 $11) 14. a4 $16 {[%emt 0:00:00]} Bc4 {[%emt 0:05:03]} 15. Bxf5 {[%emt 0:00:00]} exf5 {[%emt 0:04:09]} 16. Qxf5 {[%emt 0:00:00]} Qd7 {[%emt 0:02:11]} 17. Qxd7+ {[%emt 0:00:54]} Nxd7 {[%emt 0:00:11]} 18. Rb1 {[%emt 0:01:53]} (18. Be3 $16) 18... b5 $14 {[%emt 0:02:16]} 19. a5 {[%emt 0:00:49]} O-O {[%emt 0:00:27]} 20. Be3 {[%emt 0:04:31]} Rfe8 {[%emt 0:03:24]} 21. Nd2 {[%emt 0:02:00]} Bd3 {[%emt 0:01:00]} 22. Rb2 {[%emt 0:00:00]} f6 {[%emt 0:02:20]} 23. f4 {[%emt 0:00:00]} g5 {[%emt 0:00:53]} 24. g3 {[%emt 0:00:42]} (24. Nf3 {should be considered.}) 24... Rab8 {[%emt 0:03:07]} (24... fxe5 $11 25. dxe5 (25. fxe5 Nxe5 26. dxe5 Rxe5 $15) 25... Nxe5 $1 {[%mdl 512]} 26. fxe5 Rxe5) 25. Kf2 {[%emt 0:01:13]} Rb7 {[%emt 0:01:06]} 26. h4 {[%emt 0:00:18]} b4 $2 {[%emt 0:03:39][%mdl 8192]} (26... gxf4 $11 {and Black stays safe.} 27. gxf4 Kf7) 27. Rxb4 {[%emt 0:01:22]} (27. hxg5 $18 {and the rest is easy.} fxe5 28. dxe5) 27... Rxb4 $16 {[%emt 0:00:15]} 28. cxb4 {[%emt 0:00:44]} Rb8 $2 {[%emt 0:00:24][%mdl 8192]} (28... gxf4 $16 {was necessary.} 29. gxf4 Rc8) 29. hxg5 $18 {[%emt 0:00:42]} fxg5 {[%emt 0:00:42]} 30. fxg5 {[%emt 0:01:53]} Rf8+ {[%emt 0:02:48]} (30... Nf8 $142 31. Rc1 Ne6) 31. Kg2 {[%emt 0:02:16]} Bf5 $2 {[%emt 0:00:39]} (31... Rc8 32. Rh6 Bg6) 32. Rh6 {[%emt 0:04:23]} Bg6 {[%emt 0:01:40]} 33. Bf4 {[%emt 0:04:31]} ({Not} 33. e6 Nb8 34. Nb3 Nc6 $18) 33... Rc8 $2 {[%emt 0:01:59]} (33... Kf7 {is a better defense.} 34. Nf3 Rc8) 34. e6 {[%emt 0:00:24]} Nb8 {[%emt 0:05:30]} 35. Kf3 $2 {[%emt 0:02:01]} (35. Bxb8 $18 {has better winning chances.} Rxb8 36. e7) 35... Nc6 $16 {[%emt 0:04:25]} 36. Nb3 {[%emt 0:01:10]} Re8 {[%emt 0:01:58]} (36... Nxb4 $16 {was called for.} 37. Nc5 Nc6) 37. Nc5 $18 {[%emt 0:00:46] Strongly threatening Be5.} Nxd4+ {[%emt 0:02:16]} 38. Kf2 {[%emt 0:00:13]} Nxe6 {[%emt 0:00:00]} 39. Nxa6 {[%emt 0:02:22] b5 is the strong threat.} Nxf4 $2 {[%emt 0:00:00]} (39... Nd4) 40. gxf4 {[%emt 0:01:52][%mdl 4096] Endgame KRB-KRN} d4 {[%emt 0:04:17]} 41. Nc5 {[%emt 0:05:59] aiming for b5.} d3 {[%emt 0:02:38] [#] And now ...d2 would win.} 42. Nxd3 {[%emt 0:01:21]} Bxd3 {[%emt 0:01:02] KRB-KR} 43. Rb6 {[%emt 0:01:19]} (43. Rd6 $1 $16 {[%cal Rd6d3]} Bc4 44. Rc6) 43... Re2+ {[%emt 0:00:28]} 44. Kf3 {[%emt 0:02:07][%mdl 1024] White has strong compensation.} Kf7 {[%emt 0:01:59]} (44... Re1 $16 45. b5 h6) 45. b5 $2 {[%emt 0:01:19]} (45. Rb7+ $18 Ke6 46. Rxh7 $3 {[%mdl 512]}) 45... Rb2 {[%emt 0:01:10] [#]} (45... Ra2 $11 {keeps the balance.}) 46. Rb7+ {[%emt 0:00:38]} (46. Rf6+ $1 $16 Ke7 47. b6 (47. a6 Bxb5 48. Ke4 Re2+ 49. Kd4 Ra2 $11)) 46... Ke6 {[%emt 0:01:36]} (46... Kg6 $1 $11 {remains equal.}) 47. b6 $16 {[%emt 0:00:46] Black must now prevent Ke3.} Rb3 {[%emt 0:01:10] [#] ( -> ...Ba6+)} 48. Kf2 {[%emt 0:01:50]} (48. Rb8 $1 $16) 48... Kd6 {[%emt 0:02:22]} 49. Rc7 {[%emt 0:02:29]} Be4 {[%emt 0:03:23]} 50. Rc4 {[%emt 0:03:28]} Rf3+ $2 {[%emt 0:01:30]} (50... Bc6 $11 {and Black has nothing to worry.}) 51. Ke2 $18 {[%emt 0:00:43]} Bd3+ {[%emt 0:02:04]} (51... Bb7 $18 52. Ra4 Rb3) 52. Kxf3 {[%emt 0:00:16] Rd4+ would kill now.} Bxc4 {[%emt 0:00:15]} 53. Kg4 {[%emt 0:00:32]} Kc5 {[%emt 0:02:14] Weighted Error Value: White=0.56/Black=0.82} 1-0